bitfinex-derivatives/quotes_BTCF0:USTF0_20210703
["timestamp","ask_amount","ask_price","bid_price","bid_amount"]
[1625327696782,1.54979546,34548.0,34547.0,0.24400584]
[1625327699738,0.86913508,34548.0,34547.0,0.24400584]
[1625327701439,1.20947597,34548.0,34547.0,0.24400584]
[1625327701790,1.15047597,34548.0,34547.0,0.24400584]
[1625327701991,0.86913508,34548.0,34547.0,0.24400584]
[1625327702293,0.81013508,34548.0,34547.0,0.24400584]
[1625327702394,0.81013508,34548.0,34547.0,0.32837617]
[1625327702395,0.29957544,34548.0,34547.0,0.32837617]
[1625327702593,0.35857544,34548.0,34547.0,0.32837617]
[1625327702844,0.35857544,34548.0,34547.0,0.49711603]
[1625327703399,0.35857544,34548.0,34547.0,1.08736966]
[1625327703847,0.35857544,34548.0,34547.0,0.75002413]
[1625327704648,0.29957544,34548.0,34547.0,0.75002413]
[1625327705601,0.29957544,34548.0,34547.0,2.43742041]
[1625327706452,0.29957544,34548.0,34547.0,2.49642041]
[1625327707002,0.29957544,34548.0,34547.0,2.43742041]
[1625327707904,0.29957544,34548.0,34547.0,1.42498264]
[1625327708356,0.29957544,34548.0,34547.0,2.44091923]
[1625327708960,0.24057544,34548.0,34547.0,2.44091923]
[1625327709312,0.24057544,34548.0,34547.0,3.62631639]
[1625327710264,0.32586524,34552.0,34547.0,3.62631639]
[1625327710513,0.32586524,34552.0,34547.0,4.98221876]
[1625327710613,0.32586524,34552.0,34548.0,0.00342984]
[1625327710966,0.32586524,34552.0,34551.0,1.18636103]
[1625327711064,0.32586524,34552.0,34551.0,1.43157103]
[1625327711265,0.0852898,34552.0,34551.0,1.43157103]
[1625327711365,0.0852898,34552.0,34551.0,1.43500075]
[1625327711466,0.59639332,34553.0,34551.0,1.91615163]
[1625327711866,0.0853355,34553.0,34552.0,2.2074556]
[1625327712569,0.25595961,34555.0,34552.0,3.39550516]
[1625327712919,0.25595961,34555.0,34553.0,0.00342936]
[1625327713171,0.59697134,34556.0,34554.0,2.20741894]
[1625327713472,0.59697134,34556.0,34555.0,0.24400477]
[1625327713922,0.51158924,34556.0,34555.0,1.43331004]
[1625327714174,8.924e-05,34556.0,34555.0,1.43331004]
[1625327714276,8.924e-05,34556.0,34555.0,1.93331004]
[1625327714525,8.924e-05,34556.0,34555.0,1.99231004]
[1625327714627,0.08543383,34556.0,34555.0,4.20123816]
[1625327714726,1.19402726,34558.0,34555.0,4.20123816]
[1625327714826,0.2154574,34559.0,34555.0,4.20123816]
[1625327715026,0.2154574,34559.0,34556.0,0.003429]
[1625327715177,0.24057544,34561.0,34558.0,1.18846896]
[1625327715379,0.24057544,34561.0,34559.0,0.5]
[1625327715480,0.24057544,34561.0,34560.0,0.24057544]
[1625327715581,0.24057544,34561.0,34560.0,0.7440044]
[1625327715681,0.24057544,34561.0,34560.0,0.8030044]
[1625327716436,0.24057544,34561.0,34560.0,1.99213989]
[1625327716634,0.24057544,34561.0,34560.0,1.49213989]
[1625327716735,0.24057544,34561.0,34560.0,1.43313989]
[1625327717988,0.24057544,34561.0,34560.0,0.2440044]
[1625327718341,0.24057544,34561.0,34560.0,1.43299723]
[1625327719293,0.24057544,34561.0,34560.0,1.42956827]
[1625327720043,0.24057544,34561.0,34560.0,0.24057544]
[1625327720296,0.24057544,34561.0,34560.0,0.29957544]
[1625327720695,0.24057544,34561.0,34560.0,0.30300446]
[1625327721046,0.24057544,34561.0,34560.0,1.49105658]
[1625327722249,0.24057544,34561.0,34560.0,1.43205658]
[1625327722549,0.24057544,34561.0,34560.0,1.42862756]
[1625327722900,0.24057544,34561.0,34560.0,0.24057544]
[1625327724102,0.24057544,34561.0,34560.0,0.53326544]
[1625327725505,0.24057544,34561.0,34560.0,0.59226544]
[1625327725606,0.24057544,34561.0,34560.0,0.53326544]
[1625327726006,0.24057544,34561.0,34560.0,0.59226544]
[1625327726107,0.24057544,34561.0,34560.0,0.53326544]
[1625327726207,0.24057544,34561.0,34560.0,0.59569457]
[1625327727810,0.24057544,34561.0,34560.0,0.53669457]
[1625327727912,0.24057544,34561.0,34560.0,0.24400457]
[1625327728362,0.24057544,34561.0,34560.0,0.30300457]
[1625327728712,0.24057544,34561.0,34560.0,0.24400457]
[1625327734978,1.43440494,34561.0,34560.0,0.24400457]
[1625327735276,1.43440494,34561.0,34560.0,0.00342913]
[1625327735832,1.43440494,34561.0,34556.0,0.06242932]
[1625327736634,1.43440494,34561.0,34557.0,0.00342936]
[1625327736734,1.43440494,34561.0,34557.0,0.06242936]
[1625327737135,1.43440494,34561.0,34558.0,0.00342932]
[1625327737235,2.43440494,34561.0,34558.0,0.06242932]
[1625327737585,0.24057544,34560.0,34558.0,0.06242932]
[1625327737735,0.24057544,34560.0,34559.0,0.00342935]
[1625327737835,0.24057544,34560.0,34559.0,0.06242935]
[1625327738836,0.24057544,34560.0,34559.0,0.00342935]
[1625327738986,1.4345158,34560.0,34559.0,0.00342935]
[1625327739236,1.4345158,34560.0,34556.0,0.0034295]
[1625327739635,0.24057544,34557.0,34556.0,0.0034295]
[1625327745247,1.2642118,34557.0,34556.0,0.0034295]
[1625327746750,1.3232118,34557.0,34556.0,0.0034295]
[1625327748353,1.2642118,34557.0,34556.0,0.0034295]
[1625327749004,1.3232118,34557.0,34556.0,0.0034295]
[1625327749103,1.2642118,34557.0,34556.0,0.0034295]
[1625327750607,1.3232118,34557.0,34556.0,0.0034295]
[1625327750806,1.2642118,34557.0,34556.0,0.0034295]
[1625327752261,1.3232118,34557.0,34556.0,1.02457395]
[1625327752766,2.51830686,34557.0,34556.0,0.0034295]
[1625327753013,2.45930686,34557.0,34556.0,0.0034295]
[1625327753515,2.51830686,34557.0,34556.0,0.0034295]
[1625327755674,2.45930686,34557.0,34556.0,0.0034295]
[1625327756373,2.45930686,34557.0,34556.0,1.02483083]
[1625327756525,2.45930686,34557.0,34556.0,1.30119083]
[1625327760437,2.45930686,34557.0,34556.0,2.49420151]
[1625327762892,2.51830686,34557.0,34556.0,2.49420151]
[1625327763093,2.45930686,34557.0,34556.0,2.49420151]
[1625327763294,3.82751089,34557.0,34556.0,2.49420151]
[1625327763595,2.45930686,34557.0,34556.0,2.49420151]
[1625327769111,3.82829367,34557.0,34556.0,2.49420151]
[1625327769765,2.45930686,34557.0,34556.0,3.84996383]
[1625327771072,1.02363636,34557.0,34556.0,3.96796383]
[1625327771321,1.02363636,34557.0,34556.0,4.46796383]
[1625327771620,1.0,34558.0,34556.0,5.98954936]
[1625327771720,1.0,34558.0,34557.0,0.48115088]
[1625327771870,1.0,34558.0,34557.0,0.98115088]
[1625327771972,1.0,34558.0,34557.0,1.09915088]
[1625327772071,1.0,34558.0,34557.0,1.11115101]
[1625327772173,1.0,34558.0,34557.0,6.18065181]
[1625327772521,1.0,34558.0,34557.0,6.17208029]
[1625327773077,1.02648613,34564.0,34557.0,6.17208029]
[1625327773326,1.02610859,34565.0,34563.0,3.54581262]
[1625327773425,1.02610859,34565.0,34563.0,3.84342262]
[1625327773677,1.02610859,34565.0,34564.0,0.00342853]
[1625327773777,1.02610859,34565.0,34564.0,0.48457941]
[1625327773876,1.02610859,34565.0,34564.0,4.0303243]
[1625327775330,1.71021115,34565.0,34564.0,4.70576008]
[1625327775732,0.68410256,34565.0,34564.0,4.70576008]
[1625327779336,0.68410256,34565.0,34564.0,5.20576008]
[1625327779436,0.68349327,34566.0,34564.0,5.20576008]
[1625327779737,0.68349327,34566.0,34565.0,0.00342846]
[1625327779939,0.68349327,34566.0,34565.0,4.22202738]
[1625327780039,0.68349327,34566.0,34565.0,4.72202738]
[1625327781592,0.68325781,34567.0,34565.0,4.72202738]
[1625327781892,0.68325781,34567.0,34566.0,0.00342836]
[1625327781991,0.68325781,34567.0,34566.0,0.50342836]
[1625327782093,0.68324056,34568.0,34566.0,4.71869429]
[1625327782393,0.68324056,34568.0,34567.0,0.0034284]
[1625327782495,0.68324056,34568.0,34567.0,0.5034284]
[1625327782644,0.68324056,34568.0,34567.0,3.36957937]
[1625327783900,0.68324056,34568.0,34567.0,3.61015481]
[1625327785352,0.68297417,34569.0,34567.0,3.61015481]
[1625327785850,0.68297417,34569.0,34568.0,0.00342827]
[1625327785951,0.68297417,34569.0,34568.0,2.24749965]
[1625327786101,0.68297417,34569.0,34568.0,2.30649965]
[1625327786250,0.80577977,34573.0,34568.0,2.30649965]
[1625327786558,0.68275619,34572.0,34568.0,3.48510658]
[1625327786652,0.68275619,34572.0,34569.0,0.00342792]
[1625327786803,0.68275619,34572.0,34570.0,0.72686]
[1625327786902,0.68275619,34572.0,34570.0,0.78586]
[1625327787003,0.24057544,34582.0,34570.0,2.36006469]
[1625327787201,0.24057544,34582.0,34572.0,0.5]
[1625327787403,0.24057544,34582.0,34572.0,0.618]
[1625327787706,0.24057544,34582.0,34573.0,0.00342774]
[1625327787805,0.24057544,34582.0,34574.0,0.5]
[1625327787905,0.24057544,34582.0,34577.0,0.48115088]
[1625327788005,0.24057544,34582.0,34577.0,1.32558088]
[1625327788207,0.24057544,34582.0,34577.0,1.26658088]
[1625327788610,0.24057544,34582.0,34577.0,0.76658088]
[1625327788759,0.24057544,34582.0,34577.0,1.26658088]
[1625327788860,0.24057544,34582.0,34577.0,1.32558088]
[1625327789060,0.24057544,34582.0,34577.0,1.26658088]
[1625327789258,0.24057544,34582.0,34577.0,1.32558088]
[1625327789359,0.29957544,34582.0,34577.0,1.32558088]
[1625327789912,0.29957544,34582.0,34581.0,0.13774802]
[1625327790564,0.24057544,34582.0,34581.0,0.13774802]
[1625327791624,1.33440622,34587.0,34581.0,0.63774802]
[1625327791719,0.83370622,34587.0,34581.0,1.19674802]
[1625327791819,0.83370622,34587.0,34581.0,1.25574802]
[1625327791820,0.33310622,34587.0,34581.0,1.25574802]
[1625327791970,0.06590622,34587.0,34586.0,1.22172632]
[1625327792120,0.68155537,34593.0,34586.0,2.10635632]
[1625327792274,0.33535537,34593.0,34587.0,0.00342593]
[1625327792371,0.19155537,34593.0,34588.0,0.5]
[1625327792471,0.06085537,34593.0,34589.0,0.5]
[1625327792622,0.06085537,34593.0,34590.0,0.5]
[1625327792720,0.06085537,34593.0,34591.0,0.5]
[1625327792823,0.29757544,34611.0,34592.0,0.5]
[1625327792921,0.20427382,34612.0,34593.0,0.5]
[1625327793022,0.20427382,34612.0,34594.0,0.7398]
[1625327793171,0.20427382,34612.0,34596.0,0.5]
[1625327793270,0.20427382,34612.0,34598.0,0.5]
[1625327793371,0.20427382,34612.0,34600.0,0.5]
[1625327793471,0.20427382,34612.0,34600.0,0.80064]
[1625327793572,0.00202523,34622.0,34600.0,0.85964]
[1625327793921,0.00202523,34622.0,34613.0,0.48115088]
[1625327793922,0.24260067,34622.0,34613.0,0.48115088]
[1625327794022,0.24260067,34622.0,34613.0,0.75797088]
[1625327794123,0.24260067,34622.0,34613.0,0.81697088]
[1625327794221,0.24260067,34622.0,34613.0,0.75797088]
[1625327795077,1.24017544,34614.0,34613.0,0.48115088]
[1625327795227,1.24017544,34614.0,34613.0,0.24057544]
[1625327795425,1.29917544,34614.0,34613.0,0.24057544]
[1625327795977,1.53975088,34614.0,34613.0,0.24057544]
[1625327797629,1.48075088,34614.0,34613.0,0.24057544]
[1625327797981,1.53975088,34614.0,34613.0,0.24057544]
[1625327799737,1.83716088,34614.0,34613.0,0.24057544]
[1625327800290,1.83716088,34614.0,34607.0,0.24057544]
[1625327801947,0.24057544,34608.0,34607.0,0.24057544]
[1625327802045,0.29957544,34608.0,34607.0,0.24057544]
[1625327802446,0.35857544,34608.0,34607.0,0.24057544]
[1625327806700,0.29957544,34608.0,34607.0,0.24057544]
[1625327807352,0.29957544,34608.0,34599.0,0.29757544]
[1625327807515,0.29957544,34608.0,34587.0,0.49687993]
[1625327807516,0.35857544,34608.0,34587.0,0.49687993]
[1625327807804,0.50578494,34607.0,34582.0,0.49764013]
[1625327807904,0.71416494,34607.0,34582.0,0.49764013]
[1625327808003,0.72172632,34595.0,34586.0,0.24057544]
[1625327808154,1.06585632,34595.0,34586.0,0.24057544]
[1625327808306,1.00685632,34595.0,34586.0,0.24057544]
[1625327808505,1.00685632,34595.0,34586.0,0.29957544]
[1625327808907,1.00685632,34595.0,34586.0,0.35857544]
[1625327809008,1.00685632,34595.0,34586.0,0.85857544]
[1625327809158,0.48115088,34595.0,34586.0,0.85857544]
[1625327809957,0.48115088,34595.0,34594.0,0.48115088]
[1625327810159,0.48115088,34595.0,34594.0,0.74717088]
[1625327810261,0.48115088,34595.0,34594.0,0.80617088]
[1625327810661,0.48115088,34595.0,34594.0,0.74717088]
[1625327811811,0.48115088,34595.0,34594.0,0.80617088]
[1625327811911,0.48115088,34595.0,34594.0,0.74717088]
[1625327812360,0.48115088,34595.0,34594.0,0.48115088]
[1625327814117,0.48115088,34595.0,34594.0,0.74144088]
[1625327815320,0.48115088,34595.0,34594.0,0.80044088]
[1625327815421,0.48115088,34595.0,34594.0,0.74144088]
[1625327816873,0.48115088,34595.0,34594.0,0.80044088]
[1625327817025,0.48115088,34595.0,34594.0,0.80386664]
[1625327817624,0.48115088,34595.0,34594.0,0.74486664]
[1625327817875,0.48115088,34595.0,34594.0,0.80386664]
[1625327818025,0.48115088,34595.0,34594.0,0.74486664]
[1625327818175,0.48115088,34595.0,34594.0,0.80386664]
[1625327818274,0.48115088,34595.0,34594.0,0.74486664]
[1625327818827,0.48115088,34595.0,34594.0,0.80386664]
[1625327819078,0.48115088,34595.0,34594.0,0.74486664]
[1625327820479,0.48115088,34595.0,34594.0,0.80386664]
[1625327820579,0.48115088,34595.0,34594.0,0.74486664]
[1625327821181,0.48115088,34595.0,34594.0,0.80386664]
[1625327821380,0.48115088,34595.0,34594.0,0.74486664]
[1625327821480,0.48115088,34595.0,34594.0,0.80386664]
[1625327821581,0.48115088,34595.0,34594.0,0.74486664]
[1625327821831,0.48115088,34595.0,34594.0,0.80386664]
[1625327822281,0.48115088,34595.0,34594.0,0.74486664]
[1625327822482,0.48115088,34595.0,34594.0,0.80386664]
[1625327823033,0.48115088,34595.0,34594.0,0.74486664]
[1625327823133,0.48115088,34595.0,34594.0,0.80386664]
[1625327827244,0.48115088,34595.0,34594.0,0.74486664]
[1625327827545,0.48115088,34595.0,34594.0,0.80386664]
[1625327829702,0.48115088,34595.0,34594.0,1.30386664]
[1625327829804,0.24057544,34602.0,34594.0,1.36286664]
[1625327830105,0.24057544,34602.0,34601.0,0.24057544]
[1625327830205,0.24057544,34602.0,34601.0,0.56503544]
[1625327830405,0.24057544,34602.0,34601.0,0.56846057]
[1625327834168,0.24057544,34602.0,34601.0,0.80903601]
[1625327835018,0.24057544,34602.0,34601.0,1.36803601]
[1625327835426,0.24057544,34602.0,34601.0,1.70073826]
[1625327835771,0.24057544,34602.0,34601.0,2.19970607]
[1625327836223,0.24057544,34602.0,34601.0,1.70073826]
[1625327837227,0.24057544,34602.0,34601.0,1.86687465]
[1625327837475,0.24057544,34602.0,34601.0,1.36687465]
[1625327840932,0.24057544,34602.0,34601.0,1.30787465]
[1625327842536,0.50574544,34602.0,34601.0,1.04241465]
[1625327844191,0.50574544,34602.0,34601.0,2.04365716]
[1625327845443,0.50574544,34602.0,34601.0,1.98465716]
[1625327846696,0.50574544,34602.0,34601.0,2.65335321]
[1625327847347,0.50574544,34602.0,34601.0,2.71235321]
[1625327847446,0.50574544,34602.0,34601.0,2.77135321]
[1625327848051,0.50574544,34602.0,34601.0,3.88337583]
[1625327848504,0.24057544,34602.0,34601.0,3.94237583]
[1625327849106,7.544e-05,34602.0,34601.0,3.94237583]
[1625327849206,0.24057544,34606.0,34601.0,4.44237583]
[1625327849408,0.24057544,34606.0,34601.0,7.28721373]
[1625327849606,0.24057544,34607.0,34601.0,7.28721373]
[1625327849705,0.24057544,34607.0,34602.0,0.00342457]
[1625327849807,0.24057544,34607.0,34605.0,4.68362649]
[1625327849907,0.24057544,34607.0,34605.0,4.80162649]
[1625327850207,0.24057544,34607.0,34606.0,0.24399994]
[1625327850308,0.24057544,34607.0,34606.0,0.36199994]
[1625327850408,0.24057544,34607.0,34606.0,5.04525879]
[1625327853965,1.09346254,34611.0,34606.0,5.54525879]
[1625327854268,1.09346254,34611.0,34610.0,0.24057544]
[1625327854372,1.09346254,34611.0,34610.0,0.57537544]
[1625327854470,0.24057544,34611.0,34610.0,5.32098075]
[1625327854669,0.24057544,34611.0,34610.0,5.32440519]
[1625327855121,0.24057544,34611.0,34610.0,3.9853751]
[1625327860584,0.24057544,34611.0,34610.0,2.81372377]
[1625327860684,0.47274544,34611.0,34610.0,2.75472377]
[1625327861639,0.47274544,34611.0,34610.0,2.81372377]
[1625327861743,0.81350618,34611.0,34610.0,2.75472377]
[1625327862037,0.81350618,34611.0,34610.0,2.81372377]
[1625327862137,0.58133618,34611.0,34610.0,2.81372377]
[1625327862287,0.24057544,34611.0,34610.0,2.81372377]
[1625327864244,0.5813008,34611.0,34610.0,2.81372377]
[1625327864489,0.5813008,34611.0,34610.0,2.75472377]
[1625327864791,0.5813008,34611.0,34610.0,2.81372377]
[1625327864890,0.5813008,34611.0,34610.0,2.75472377]
[1625327864991,0.5813008,34611.0,34610.0,2.81372377]
[1625327865091,0.5813008,34611.0,34610.0,2.75472377]
[1625327865291,0.5813008,34611.0,34610.0,2.81372377]
[1625327865392,0.75174653,34611.0,34610.0,2.75472377]
[1625327865492,0.75174653,34611.0,34610.0,2.81372377]
[1625327869200,0.5813008,34611.0,34610.0,1.8094512]
[1625327869601,1.09242551,34611.0,34610.0,2.81223105]
[1625327870152,0.75178752,34611.0,34610.0,2.81223105]
[1625327870602,1.09243254,34611.0,34610.0,2.81223105]
[1625327872209,0.75181525,34611.0,34610.0,2.81223105]
[1625327872908,0.75181525,34611.0,34610.0,2.75323105]
[1625327873360,0.75181525,34611.0,34610.0,2.81223105]
[1625327873460,1.09270765,34611.0,34610.0,2.81223105]
[1625327874565,0.41115553,34611.0,34610.0,3.98193054]
[1625327874863,0.72426553,34611.0,34610.0,3.92293054]
[1625327875013,0.78326553,34611.0,34610.0,3.58813054]
[1625327875313,1.80590958,34611.0,34610.0,2.41843105]
[1625327875813,1.86490958,34611.0,34610.0,2.41843105]
[1625327875915,4.0813766,34611.0,34610.0,1.4156512]
[1625327876014,4.09850062,34611.0,34610.0,1.4156512]
[1625327876467,5.46256582,34611.0,34610.0,0.00342444]
[1625327877669,5.46256582,34611.0,34609.0,0.00342494]
[1625327877770,5.46256582,34611.0,34609.0,0.17103443]
[1625327877870,5.46256582,34611.0,34610.0,0.00342496]
[1625327878673,5.46256582,34611.0,34609.0,0.00342507]
[1625327878974,0.01712557,34610.0,34609.0,0.00342507]
[1625327879224,0.07612557,34610.0,34609.0,0.00342507]
[1625327879525,4.85294262,34610.0,34609.0,0.00342507]
[1625327879777,4.85294262,34610.0,34608.0,0.00342516]
[1625327880025,0.01712571,34609.0,34608.0,0.00342516]
[1625327880126,0.07612571,34609.0,34608.0,0.17123404]
[1625327880427,0.01712571,34609.0,34608.0,0.17123404]
[1625327880525,0.07612571,34609.0,34608.0,0.17123404]
[1625327880628,4.85431893,34609.0,34608.0,0.50688002]
[1625327881377,4.91331893,34609.0,34608.0,0.50688002]
[1625327881578,4.85431893,34609.0,34608.0,0.50688002]
[1625327883030,4.91331893,34609.0,34608.0,0.50688002]
[1625327883281,4.91331893,34609.0,34608.0,0.16780888]
[1625327883529,4.91331893,34609.0,34608.0,8.88e-06]
[1625327883731,6.44904382,34609.0,34606.0,0.24057544]
[1625327884031,0.01712661,34608.0,34606.0,0.24057544]
[1625327884183,6.31385215,34607.0,34606.0,0.24057544]
[1625327884431,6.67242759,34607.0,34606.0,0.24057544]
[1625327884583,5.13670411,34607.0,34606.0,0.24057544]
[1625327885834,5.13670411,34607.0,34606.0,0.57647679]
[1625327886536,5.13670411,34607.0,34606.0,0.24057544]
[1625327886687,5.07770411,34607.0,34606.0,0.24057544]
[1625327887087,5.07770411,34607.0,34606.0,0.57654603]
[1625327889091,5.13670411,34607.0,34606.0,0.57654603]
[1625327889191,5.13670411,34607.0,34606.0,0.24057544]
[1625327889693,5.13670411,34607.0,34606.0,0.5766013]
[1625327890096,5.13670411,34607.0,34606.0,0.74448803]
[1625327890445,5.13670411,34607.0,34606.0,1.08044749]
[1625327890946,5.13670411,34607.0,34606.0,0.24057544]
[1625327892250,5.07770411,34607.0,34606.0,0.2440004]
[1625327892451,3.71259761,34607.0,34606.0,2.42600625]
[1625327892903,2.5181081,34607.0,34606.0,2.42600625]
[1625327895711,2.5181081,34607.0,34606.0,2.48500625]
[1625327895812,2.5181081,34607.0,34606.0,3.65934601]
[1625327896263,1.49423557,34607.0,34606.0,5.00081679]
[1625327896716,0.81159701,34607.0,34606.0,5.00081679]
[1625327897418,0.81159701,34607.0,34606.0,4.94181679]
[1625327897722,2.51801196,34607.0,34606.0,3.60034601]
[1625327899074,1.49419711,34607.0,34606.0,3.60034601]
[1625327899275,1.49419711,34607.0,34606.0,3.65934601]
[1625327899726,0.81159701,34607.0,34606.0,4.94163532]
[1625327899825,0.81159701,34607.0,34606.0,5.00063532]
[1625327899925,0.81159701,34607.0,34606.0,4.94163532]
[1625327900278,0.81159701,34607.0,34606.0,5.00063532]
[1625327900526,0.81159701,34607.0,34606.0,4.94163532]
[1625327900880,1.49414924,34607.0,34606.0,3.60034601]
[1625327903036,0.81159701,34607.0,34606.0,4.94157263]
[1625327903686,0.81159701,34607.0,34606.0,5.00057263]
[1625327903786,0.81159701,34607.0,34606.0,4.94157263]
[1625327904136,0.81159701,34607.0,34606.0,5.00057263]
[1625327907545,0.81159701,34607.0,34606.0,4.94157263]
[1625327907695,0.81159701,34607.0,34606.0,5.00057263]
[1625327908297,1.15299911,34607.0,34606.0,5.00057263]
[1625327908498,1.15299911,34607.0,34606.0,4.94157263]
[1625327908650,1.15299911,34607.0,34606.0,5.00057263]
[1625327909249,0.64097754,34607.0,34606.0,5.00057263]
[1625327909700,0.64097754,34607.0,34606.0,4.94157263]
[1625327909802,0.64097754,34607.0,34606.0,5.00057263]
[1625327909901,0.64097754,34607.0,34606.0,4.94157263]
[1625327910402,1.15301127,34607.0,34606.0,4.94157263]
[1625327910501,1.15301127,34607.0,34606.0,5.00057263]
[1625327910602,1.15301127,34607.0,34606.0,4.94157263]
[1625327910704,1.15301127,34607.0,34606.0,5.00057263]
[1625327910851,1.15301127,34607.0,34606.0,4.94157263]
[1625327910952,0.64097754,34607.0,34606.0,4.94157263]
[1625327911052,0.64097754,34607.0,34606.0,5.00057263]
[1625327911157,0.64097754,34607.0,34606.0,4.94157263]
[1625327911553,0.64097754,34607.0,34606.0,5.00057263]
[1625327911854,0.64097754,34607.0,34606.0,4.94157263]
[1625327911954,0.64097754,34607.0,34606.0,5.00057263]
[1625327912054,0.64097754,34607.0,34606.0,4.94157263]
[1625327912154,0.64097754,34607.0,34606.0,5.00057263]
[1625327912304,0.64097754,34607.0,34606.0,4.94157263]
[1625327912705,1.15303114,34607.0,34606.0,4.94157263]
[1625327913308,0.64097754,34607.0,34606.0,5.00057263]
[1625327913410,0.64097754,34607.0,34606.0,4.94157263]
[1625327913812,0.81166613,34607.0,34606.0,4.94157263]
[1625327914262,0.81166613,34607.0,34606.0,5.00057263]
[1625327914814,1.1531388,34607.0,34606.0,5.00057263]
[1625327915264,1.1531388,34607.0,34606.0,4.94157263]
[1625327915365,0.64104811,34607.0,34606.0,4.94157263]
[1625327919174,0.34147267,34607.0,34606.0,5.00057263]
[1625327919675,0.427003,34610.0,34606.0,6.51243324]
[1625327920078,0.427003,34610.0,34607.0,0.00342399]
[1625327920178,0.427003,34610.0,34607.0,0.06242399]
[1625327920428,0.32606853,34611.0,34609.0,6.21255424]
[1625327920528,0.32606853,34611.0,34609.0,6.45653424]
[1625327920626,0.32606853,34611.0,34610.0,0.24057544]
[1625327920826,0.32606853,34611.0,34610.0,0.30299939]
[1625327921131,0.66753636,34611.0,34610.0,5.00488106]
[1625327922131,0.58204327,34611.0,34610.0,5.00488106]
[1625327923785,0.32605569,34611.0,34610.0,5.00488106]
[1625327924938,0.66745892,34611.0,34610.0,5.00488106]
[1625327925289,0.32605569,34611.0,34610.0,5.00488106]
[1625327927590,0.32605569,34611.0,34610.0,4.94588106]
[1625327928292,0.64092161,34611.0,34610.0,4.94588106]
[1625327928895,2.51781699,34611.0,34610.0,3.6024863]
[1625327929293,2.51781699,34611.0,34610.0,2.42701588]
[1625327929745,2.51781699,34611.0,34610.0,3.60052027]
[1625327930395,2.51781699,34611.0,34610.0,2.42701588]
[1625327930495,2.57681699,34611.0,34610.0,2.42701588]
[1625327930997,3.77126168,34611.0,34610.0,2.42701588]
[1625327931196,3.78838492,34611.0,34610.0,2.42701588]
[1625327931400,5.15355143,34611.0,34610.0,0.32797332]
[1625327931851,5.15355143,34611.0,34610.0,0.24399939]
[1625327931949,5.15355143,34611.0,34608.0,0.83987106]
[1625327932099,5.15355143,34611.0,34606.0,1.00808244]
[1625327932202,0.01712497,34610.0,34609.0,0.00342499]
[1625327932351,0.13512497,34610.0,34609.0,0.00342499]
[1625327932451,1.67107639,34610.0,34607.0,0.00342501]
[1625327932599,0.24057544,34608.0,34607.0,0.00342501]
[1625327932751,0.24057544,34608.0,34605.0,0.00342511]
[1625327932752,5.41974401,34608.0,34605.0,0.00342511]
[1625327932849,5.47874401,34608.0,34605.0,0.00342511]
[1625327933000,0.01712557,34607.0,34602.0,0.00342511]
[1625327933101,3.58412379,34606.0,34602.0,1.01274753]
[1625327933251,3.64312379,34606.0,34602.0,1.01274753]
[1625327933550,3.64312379,34606.0,34603.0,0.00342508]
[1625327933700,1.36535345,34605.0,34603.0,0.00342508]
[1625327934050,1.42435345,34605.0,34603.0,0.00342508]
[1625327934150,2.21856398,34604.0,34603.0,1.01239693]
[1625327934251,2.27756398,34604.0,34603.0,1.01239693]
[1625327934351,2.21856398,34604.0,34603.0,1.01239693]
[1625327934650,2.45913942,34604.0,34603.0,1.01239693]
[1625327935251,2.51813942,34604.0,34603.0,1.01239693]
[1625327938555,2.45913942,34604.0,34603.0,1.01239693]
[1625327939406,1.32354117,34604.0,34603.0,1.01239693]
[1625327939504,1.26454117,34604.0,34603.0,1.01239693]
[1625327940554,1.32354117,34604.0,34603.0,1.01239693]
[1625327940656,1.26454117,34604.0,34603.0,1.01239693]
[1625327941005,2.45896933,34604.0,34603.0,1.01239693]
[1625327941507,1.26454117,34604.0,34603.0,1.01239693]
[1625327945218,1.26454117,34604.0,34603.0,2.19130117]
[1625327945719,0.24057544,34604.0,34603.0,2.19130117]
[1625327945819,0.24057544,34604.0,34603.0,2.45540117]
[1625327946523,0.24057544,34604.0,34603.0,2.57340117]
[1625327946623,0.24057544,34604.0,34603.0,3.07340117]
[1625327946724,0.24057544,34604.0,34603.0,3.31397661]
[1625327947578,0.24057544,34604.0,34603.0,4.7468135]
[1625327947677,0.50284544,34604.0,34603.0,4.1603135]
[1625327947776,0.50284544,34604.0,34603.0,3.7782135]
[1625327948379,0.50284544,34604.0,34603.0,5.29237663]
[1625327949131,0.50284544,34604.0,34603.0,3.7782135]
[1625327949582,0.56184544,34604.0,34603.0,3.7782135]
[1625327949684,0.50284544,34604.0,34603.0,3.7782135]
[1625327949834,0.56184544,34604.0,34603.0,3.7782135]
[1625327949932,0.50284544,34604.0,34603.0,3.7782135]
[1625327955797,0.50284544,34604.0,34603.0,3.53763806]
[1625327955897,0.56184544,34604.0,34603.0,3.53763806]
[1625327956350,0.62084544,34604.0,34603.0,3.53763806]
[1625327956652,0.67984544,34604.0,34603.0,3.53763806]
[1625327956801,0.87854762,34604.0,34600.0,1.51691531]
[1625327956951,0.87854762,34604.0,34595.0,1.68559236]
[1625327957052,0.81954762,34604.0,34595.0,1.68559236]
[1625327957152,0.87854762,34604.0,34595.0,1.68559236]
[1625327957252,0.01712814,34603.0,34596.0,0.00342563]
[1625327957354,1.53684401,34599.0,34596.0,0.00342563]
[1625327957453,1.59584401,34599.0,34596.0,0.00342563]
[1625327957555,1.65484401,34599.0,34596.0,0.00342563]
[1625327957754,0.01712903,34598.0,34595.0,0.00342581]
[1625327957854,0.07612903,34598.0,34595.0,0.00342581]
[1625327957956,0.13512903,34598.0,34595.0,0.00342581]
[1625327958309,0.01712985,34597.0,34595.0,0.00342581]
[1625327958409,0.35785985,34597.0,34595.0,0.00342581]
[1625327958507,0.41685985,34597.0,34595.0,0.00342581]
[1625327958607,0.41685985,34597.0,34589.0,1.18485483]
[1625327958608,0.41685985,34597.0,34592.0,0.00342599]
[1625327958808,0.72172632,34593.0,34590.0,1.01581205]
[1625327958909,0.78072632,34593.0,34590.0,1.01581205]
[1625327959009,0.83972632,34593.0,34590.0,1.01581205]
[1625327959162,2.21823822,34591.0,34590.0,1.01581205]
[1625327959259,2.27723822,34591.0,34590.0,1.01581205]
[1625327959609,2.27723822,34591.0,34590.0,1.01923796]
[1625327959811,1.08281538,34591.0,34590.0,1.01923796]
[1625327960464,1.08281538,34591.0,34590.0,1.01581205]
[1625327960565,1.02381538,34591.0,34590.0,1.01581205]
[1625327960764,1.26439082,34591.0,34590.0,1.01581205]
[1625327961064,1.26439082,34591.0,34589.0,1.01504464]
[1625327961964,1.32339082,34591.0,34589.0,1.01504464]
[1625327962166,1.02289298,34590.0,34589.0,1.01504464]
[1625327962265,1.27985298,34590.0,34589.0,1.01504464]
[1625327962415,1.33885298,34590.0,34589.0,1.01504464]
[1625327962514,0.31596,34590.0,34589.0,1.01504464]
[1625327962767,0.31596,34590.0,34588.0,1.01444674]
[1625327962920,0.25696,34590.0,34588.0,1.01444674]
[1625327963269,0.31596,34590.0,34588.0,1.01444674]
[1625327964421,0.31596,34590.0,34587.0,1.01366013]
[1625327964522,0.25696,34590.0,34587.0,1.01366013]